[Event "FIDE Women's Grand Swiss 2023"]
[Site "Villa Marina, Douglas, Isle of Man"]
[Date "2023.11.04"]
[Round "10.22"]
[White "Lee, Alice"]
[Black "Savitha, Shri B"]
[Result "1/2-1/2"]
[WhiteElo "2388"]
[BlackElo "2375"]
[EventDate "2023.10.25"]
[ECO "A43"]
[PlyCount "154"]
[BlackFideId "35061887"]
[TimeControl "40/90 + 30 + 30s/move"]
[WhiteFideId "30941822"]

1.d4 {[%clk 01:30:57][%emt 00:00:01]} 1...c5 {[%clk 01:30:36][%emt 00:00:25]} 
2.d5 {[%clk 01:31:20][%emt 00:00:08]} 2...d6 {[%clk 01:30:54][%emt 00:00:11]} 
3.e4 {[%clk 01:29:28][%emt 00:02:21]} 3...g6 {[%clk 01:31:07][%emt 00:00:17]} 
4.c4 {[%clk 01:25:59][%emt 00:04:00]} 4...Bg7 {[%clk 01:31:29][%emt 00:00:08]} 
5.Ne2 {[%clk 01:25:08][%emt 00:01:20]} 5...Nf6 {[%clk 01:26:26][%emt 00:05:34]} 
6.Ng3 {[%clk 01:24:59][%emt 00:00:39]} 6...O-O {[%clk 01:25:24][%emt 00:01:31]} 
7.Nc3 {[%clk 01:25:20][%emt 00:00:09]} 7...e6 {[%clk 01:23:19][%emt 00:02:36]} 
8.Be2 {[%clk 01:25:40][%emt 00:00:10]} 8...exd5 {[%clk 01:22:22][%emt 00:01:27]} 
9.cxd5 {[%clk 01:26:03][%emt 00:00:07]} 9...Nbd7 {[%clk 01:18:41][%emt
00:04:11]} 10.O-O {[%clk 01:23:31][%emt 00:03:02]} 10...Re8 {[%clk
01:12:40][%emt 00:06:32]} 11.a4 {[%clk 01:14:52][%emt 00:09:09]} 11...a6 {[%clk
01:10:17][%emt 00:02:52]} 12.Be3 {[%clk 01:08:15][%emt 00:07:06]} 12...h5 
{[%clk 01:01:03][%emt 00:09:45]} 13.Bg5 {[%clk 01:06:34][%emt 00:02:11]} 
13...Qb6 {[%clk 01:00:29][%emt 00:01:02]} 14.Qd2 {[%clk 01:04:31][%emt
00:02:34]} 14...Nh7 {[%clk 00:59:27][%emt 00:01:33]} 15.Bh6 {[%clk
01:04:26][%emt 00:00:35]} 15...h4 {[%clk 00:55:00][%emt 00:04:57]} 16.Bxg7 
{[%clk 01:02:49][%emt 00:02:07]} 16...Kxg7 {[%clk 00:51:44][%emt 00:03:47]} 
17.Nh1 {[%clk 01:03:03][%emt 00:00:15]} 17...Ndf6 {[%clk 00:48:42][%emt
00:03:32]} 18.f3 {[%clk 01:00:35][%emt 00:02:58]} 18...Bd7 {[%clk 00:39:19][%emt
00:09:53]} 19.Nf2 {[%clk 00:55:55][%emt 00:05:10]} 19...Qb4 {[%clk
00:37:12][%emt 00:02:38]} 20.Ra2 {[%clk 00:51:15][%emt 00:05:10]} 20...b5 
{[%clk 00:32:09][%emt 00:05:33]} 21.Qf4 {[%clk 00:50:48][%emt 00:00:56]} 
21...c4 {[%clk 00:31:43][%emt 00:00:56]} 22.axb5 {[%clk 00:46:09][%emt
00:05:09]} 22...axb5 {[%clk 00:30:33][%emt 00:01:40]} 23.Rfa1 {[%clk
00:46:30][%emt 00:00:09]} 23...Rxa2 {[%clk 00:29:21][%emt 00:01:42]} 24.Rxa2 
{[%clk 00:46:57][%emt 00:00:03]} 24...Qc5 {[%clk 00:28:30][%emt 00:01:22]} 
25.Qd2 {[%clk 00:44:30][%emt 00:02:57]} 25...Rb8 {[%clk 00:25:28][%emt
00:03:32]} 26.Nd1 {[%clk 00:39:29][%emt 00:05:30]} 26...b4 {[%clk 00:23:36][%emt
00:02:22]} 27.Ra1 {[%clk 00:38:17][%emt 00:01:42]} 27...Bb5 {[%clk
00:15:14][%emt 00:08:53]} 28.Rc1 {[%clk 00:38:11][%emt 00:00:35]} 28...Nd7 
{[%clk 00:11:29][%emt 00:04:15]} 29.Bxc4 {[%clk 00:34:43][%emt 00:03:59]} 
29...Bxc4 {[%clk 00:10:00][%emt 00:01:58]} 30.Ne3 {[%clk 00:35:02][%emt
00:00:11]} 30...Nb6 {[%clk 00:06:38][%emt 00:03:52]} 31.b3 {[%clk 00:34:29][%emt
00:01:03]} 31...Ra8 {[%clk 00:06:51][%emt 00:00:16]} 32.Qb2+ {[%clk
00:34:08][%emt 00:00:51]} 32...Kg8 {[%clk 00:05:51][%emt 00:01:31]} 33.Nxc4 
{[%clk 00:33:28][%emt 00:01:10]} 33...Nxc4 {[%clk 00:06:02][%emt 00:00:19]} 
34.Rxc4 {[%clk 00:32:36][%emt 00:01:22]} 34...Qe3 {[%clk 00:06:24][%emt
00:00:08]} 35.Kf1 {[%clk 00:32:46][%emt 00:00:20]} 35...Rb8 {[%clk
00:02:10][%emt 00:04:45]} 36.Ng4 {[%clk 00:32:42][%emt 00:00:32]} 36...Qd3+ 
{[%clk 00:01:28][%emt 00:01:12]} 37.Kf2 {[%clk 00:31:43][%emt 00:01:29]} 
37...f6 {[%clk 00:01:14][%emt 00:00:44]} 38.Rc7 {[%clk 00:29:31][%emt 00:02:42]} 
38...Ra8 {[%clk 00:01:09][%emt 00:00:35]} 39.Rc4 {[%clk 00:24:10][%emt
00:05:51]} 39...Qd1 {[%clk 00:00:49][%emt 00:00:49]} 40.Qc2 {[%clk
00:23:12][%emt 00:01:28]} 40...Qa1 {[%clk 00:00:42][%emt 00:00:39]} 41.Rc8+ 
{[%clk 00:19:54][%emt 00:03:47]} 41...Rxc8 {[%clk 00:00:58][%emt 00:00:14]} 
42.Qxc8+ {[%clk 00:20:21][%emt 00:00:02]} 42...Nf8 {[%clk 00:01:22][%emt
00:00:07]} 43.Ne3 {[%clk 00:17:55][%emt 00:02:56]} 43...Qd4 {[%clk
00:27:42][%emt 00:04:10]} 44.Ke2 {[%clk 00:43:32][%emt 00:04:54]} 44...Qa1 
{[%clk 00:25:31][%emt 00:02:40]} 45.h3 {[%clk 00:43:42][%emt 00:00:20]} 
45...Qd4 {[%clk 00:20:59][%emt 00:05:03]} 46.Qc4 {[%clk 00:42:02][%emt
00:02:09]} 46...Qb2+ {[%clk 00:20:40][%emt 00:00:49]} 47.Qc2 {[%clk
00:41:24][%emt 00:01:07]} 47...Qa1 {[%clk 00:19:56][%emt 00:01:15]} 48.f4 
{[%clk 00:31:58][%emt 00:09:56]} 48...Qd4 {[%clk 00:16:39][%emt 00:03:46]} 
49.Qc4 {[%clk 00:32:04][%emt 00:00:25]} 49...Qb2+ {[%clk 00:16:57][%emt
00:00:12]} 50.Kf3 {[%clk 00:32:01][%emt 00:00:33]} 50...Qd2 {[%clk
00:16:11][%emt 00:01:16]} 51.Qc6 {[%clk 00:28:48][%emt 00:03:43]} 51...Qe1 
{[%clk 00:13:02][%emt 00:03:38]} 52.Qxd6 {[%clk 00:17:22][%emt 00:11:57]} 
52...Qg3+ {[%clk 00:13:25][%emt 00:00:07]} 53.Ke2 {[%clk 00:17:49][%emt
00:00:03]} 53...g5 {[%clk 00:13:48][%emt 00:00:07]} 54.Qxf6 {[%clk
00:18:00][%emt 00:00:18]} 54...gxf4 {[%clk 00:14:09][%emt 00:00:09]} 55.Ng4 
{[%clk 00:18:24][%emt 00:00:06]} 55...Qxg2+ {[%clk 00:13:00][%emt 00:01:40]} 
56.Nf2 {[%clk 00:18:53][%emt 00:00:01]} 56...Qg3 {[%clk 00:12:35][%emt
00:00:54]} 57.Qd4 {[%clk 00:13:35][%emt 00:05:49]} 57...Qxb3 {[%clk
00:12:19][%emt 00:00:45]} 58.e5 {[%clk 00:10:10][%emt 00:03:56]} 58...f3+ 
{[%clk 00:11:15][%emt 00:01:35]} 59.Kf1 {[%clk 00:08:26][%emt 00:02:13]} 
59...Qb1+ {[%clk 00:05:32][%emt 00:06:13]} 60.Nd1 {[%clk 00:08:38][%emt
00:00:19]} 60...Qf5 {[%clk 00:04:02][%emt 00:02:00]} 61.Nf2 {[%clk
00:06:48][%emt 00:02:20]} 61...b3 {[%clk 00:03:56][%emt 00:00:36]} 62.e6 {[%clk
00:06:35][%emt 00:00:42]} 62...Qg5 {[%clk 00:02:43][%emt 00:01:44]} 63.Ng4 
{[%clk 00:04:48][%emt 00:02:16]} 63...Nh7 {[%clk 00:03:12]} 64.e7 {[%clk
00:04:30][%emt 00:00:48]} 64...Kf7 {[%clk 00:02:42][%emt 00:01:00]} 65.d6 
{[%clk 00:03:53][%emt 00:01:06]} 65...Qc1+ {[%clk 00:02:35][%emt 00:00:38]} 
66.Kf2 {[%clk 00:04:21][%emt 00:00:03]} 66...Qc2+ {[%clk 00:02:24][%emt
00:00:40]} 67.Kxf3 {[%clk 00:04:48][%emt 00:00:02]} 67...Ng5+ {[%clk
00:02:24][%emt 00:00:30]} 68.Ke3 {[%clk 00:05:13][%emt 00:00:06]} 68...Qc1+ 
{[%clk 00:01:46][%emt 00:01:08]} 69.Ke2 {[%clk 00:05:19] [%emt 00:00:24]} 
69...Qc2+ {[%clk 00:02:04] [%emt 00:00:13]} 70.Kf1 {[%clk 00:04:53] [%emt
00:00:55]} 70...Qc1+ {[%clk 00:02:13] [%emt 00:00:22]} 71.Ke2 {[%clk 00:04:16]
[%emt 00:01:06]} 71...Qc2+ {[%clk 00:02:33] [%emt 00:00:10]} 72.Kf1 {[%clk
00:03:57] [%emt 00:00:49]} 72...Qc1+ {[%clk 00:02:13][%emt 00:00:22]} 73.Ke2 
{[%clk 00:05:19][%emt 00:00:24]} 73...Qc2+ {[%clk 00:02:58] [%emt 00:00:04]} 
74.Kf1 {[%clk 00:02:54] [%emt 00:00:58]} 74...Qb1+ {[%clk 00:02:00] [%emt
00:01:28]} 75.Ke2 {[%clk 00:02:11] [%emt 00:01:12]} 75...Qc2+ {[%clk 00:02:26]
[%emt 00:00:05]} 76.Kf1 {[%clk 00:04:53][%emt 00:00:55]} 76...Qb1+ {[%clk
00:02:00][%emt 00:01:28]} 77.Ke2 {[%clk 00:02:11][%emt 00:01:12]} 77...Qc2+ 
{[%clk 00:02:04][%emt 00:00:13]} 1/2-1/2